bitfinex-derivatives/quotes_SOLF0:USTF0_20230904
["timestamp","ask_amount","ask_price","bid_price","bid_amount"]
[1693868340710,78.0,19.343,19.34,278.11020544]
[1693868340913,78.0,19.343,19.337,16.02752326]
[1693868341106,78.0,19.343,19.339,15.51]
[1693868341302,78.0,19.343,19.34,278.10894963]
[1693868341500,78.0,19.343,19.337,16.02752326]
[1693868341803,78.0,19.343,19.339,15.51]
[1693868342003,78.0,19.343,19.34,278.10867273]
[1693868342205,78.0,19.343,19.337,16.02752326]
[1693868342504,78.0,19.343,19.338,278.10870401]
[1693868347405,15.4,19.342,19.338,278.10870401]
[1693868347704,15.4,19.342,19.334,20.2083]
[1693868347705,78.0,19.341,19.334,98.2083]
[1693868347908,78.0,19.338,19.335,278.1287238]
[1693868349717,78.0,19.338,19.337,0.0629778]
[1693868353118,78.0,19.34,19.337,0.0629778]
[1693868372325,78.0,19.34,19.335,278.12683346]
[1693868373129,78.0,19.342,19.335,356.12683346]
[1693868373329,78.0,19.342,19.337,15.51]
[1693868373524,78.0,19.342,19.339,15.51]
[1693868373723,78.0,19.342,19.335,78.0]
[1693868373929,78.0,19.342,19.337,15.51]
[1693868374132,78.0,19.342,19.339,15.51]
[1693868374326,78.0,19.342,19.34,278.1229423]
[1693868374535,78.0,19.342,19.341,278.1229423]
[1693868375034,78.0,19.342,19.339,15.51]
[1693868375226,78.0,19.342,19.34,278.1229423]
[1693868375427,78.0,19.342,19.341,278.1229423]
[1693868375929,78.0,19.342,19.338,278.1229423]
[1693868376231,78.0,19.342,19.339,15.51]
[1693868376427,78.0,19.342,19.34,278.1229423]
[1693868376625,78.0,19.342,19.341,278.1229423]
[1693868377024,78.0,19.342,19.339,15.51]
[1693868377234,78.0,19.342,19.34,278.1229423]
[1693868377434,78.0,19.342,19.341,278.1229423]
[1693868377732,78.0,19.342,19.339,15.51]
[1693868377933,78.0,19.342,19.34,278.1229423]
[1693868378132,78.0,19.342,19.341,278.1229423]
[1693868379130,78.0,19.342,19.339,15.51]
[1693868379332,78.0,19.342,19.34,278.1229423]
[1693868379528,78.0,19.342,19.341,278.1229423]
[1693868379732,78.0,19.342,19.339,15.51]
[1693868379929,78.0,19.342,19.34,278.1229423]
[1693868380126,78.0,19.342,19.341,278.1229423]
[1693868380329,78.0,19.342,19.339,15.51]
[1693868380530,78.0,19.342,19.34,278.1229423]
[1693868380730,78.0,19.342,19.341,278.1229423]
[1693868380932,78.0,19.342,19.339,15.51]
[1693868381132,78.0,19.342,19.34,278.1229423]
[1693868381336,78.0,19.342,19.341,278.1229423]
[1693868381535,78.0,19.342,19.339,15.51]
[1693868381730,78.0,19.342,19.34,278.1229423]
[1693868381925,78.0,19.342,19.341,278.1229423]
[1693868382331,78.0,19.342,19.339,15.51]
[1693868382531,78.0,19.342,19.34,278.1229423]
[1693868382737,78.0,19.342,19.341,278.1229423]
[1693868383137,78.0,19.344,19.341,278.1229423]
[1693868383333,78.0,19.344,19.342,278.1229423]
[1693868383538,78.0,19.344,19.343,278.1229423]
[1693868383835,78.0,19.344,19.339,15.51]
[1693868384039,78.0,19.344,19.34,278.1229423]
[1693868384231,78.0,19.344,19.341,278.1229423]
[1693868384431,78.0,19.344,19.342,278.1229423]
[1693868384632,78.0,19.344,19.343,278.1229423]
[1693868384832,78.0,19.344,19.339,15.51]
[1693868385137,78.0,19.344,19.34,278.1229423]
[1693868385339,78.0,19.344,19.341,278.1229423]
[1693868385633,78.0,19.344,19.342,278.1229423]
[1693868385935,78.0,19.344,19.343,278.1229423]
[1693868386933,78.0,19.344,19.339,15.51]
[1693868387130,78.0,19.344,19.34,278.1229423]
[1693868387328,78.0,19.344,19.341,278.1229423]
[1693868387535,78.0,19.344,19.342,278.1229423]
[1693868387735,78.0,19.344,19.343,278.1229423]
[1693868388235,78.0,19.344,19.339,15.51]
[1693868388440,78.0,19.344,19.34,278.1229423]
[1693868388636,78.0,19.344,19.341,278.1229423]
[1693868388837,78.0,19.344,19.342,278.1229423]
[1693868389031,78.0,19.344,19.343,278.1229423]
[1693868389337,78.0,19.344,19.339,15.51]
[1693868389538,78.0,19.344,19.34,278.1229423]
[1693868389737,78.0,19.344,19.341,278.1229423]
[1693868390039,78.0,19.344,19.342,278.1229423]
[1693868390338,78.0,19.344,19.343,278.1229423]
[1693868390534,78.0,19.344,19.339,15.51]
[1693868390730,78.0,19.344,19.34,278.1229423]
[1693868390932,78.0,19.344,19.341,278.1229423]
[1693868391137,78.0,19.344,19.342,278.1229423]
[1693868391337,78.0,19.344,19.343,278.1229423]
[1693868391741,78.0,19.344,19.34,278.1229423]
[1693868391936,78.0,19.344,19.341,278.1229423]
[1693868392142,78.0,19.344,19.342,278.1229423]
[1693868392339,78.0,19.344,19.343,278.1229423]
[1693868392534,78.0,19.344,19.339,15.51]
[1693868392739,78.0,19.344,19.34,278.1229423]
[1693868393039,78.0,19.344,19.341,278.10092237]
[1693868393239,78.0,19.344,19.342,278.10092237]
[1693868393538,78.0,19.344,19.343,278.10092237]
[1693868393743,78.0,19.344,19.339,15.51]
[1693868393939,78.0,19.344,19.341,15.51]
[1693868394239,78.0,19.344,19.342,278.10092237]
[1693868394434,78.0,19.344,19.343,278.10092237]
[1693868397246,78.0,19.344,19.339,15.51]
[1693868397448,78.0,19.344,19.341,15.51]
[1693868397641,78.0,19.344,19.342,278.10092237]
[1693868397837,78.0,19.344,19.343,278.10092237]
[1693868398037,78.0,19.344,19.339,15.51]
[1693868398242,78.0,19.344,19.341,15.51]
[1693868398548,78.0,19.347,19.342,278.10092237]
[1693868401745,78.0,19.344,19.342,278.10092237]
[1693868401949,78.0,19.344,19.337,15.5729778]
[1693868402145,78.0,19.344,19.338,278.10408047]
[1693868402451,78.0,19.34,19.338,278.10408047]
[1693868402650,78.0,19.34,19.339,278.10408047]
[1693868402843,78.0,19.34,19.335,278.10408047]
[1693868403149,78.0,19.338,19.335,278.10408047]
[1693868403654,0.06297781,19.337,19.335,278.10408047]
[1693868406154,78.0,19.336,19.335,276.76818047]
[1693868406351,78.0,19.336,19.324,78.0]
[1693868406548,78.0,19.332,19.326,15.52]
[1693868406945,78.0,19.332,19.326,15.97454546]
[1693868409659,78.0,19.332,19.329,0.189009]
[1693868413265,78.0,19.33,19.329,0.189009]
[1693868415958,78.0,19.332,19.329,0.189009]
[1693868417571,78.0,19.332,19.326,15.97454546]
[1693868418066,78.0,19.332,19.326,0.45454546]
[1693868418262,78.0,19.329,19.321,78.0]
[1693868418669,78.0,19.329,19.322,21.0657]
[1693868421468,78.0,19.33,19.324,15.52]
[1693868422065,37.54044588,19.335,19.328,78.0]
[1693868422066,78.06298432,19.335,19.328,78.0]
[1693868422263,0.06298432,19.335,19.331,78.0]
[1693868422566,1e-08,19.335,19.334,78.0]
[1693868425076,1e-08,19.335,19.334,78.45454546]
[1693868426172,1e-08,19.335,19.334,356.55751484]
[1693868427368,78.0,19.346,19.334,356.55751484]
[1693868427568,78.0,19.346,19.339,78.0]
[1693868427768,78.0,19.346,19.341,15.52]
[1693868427971,15.4,19.347,19.337,86.63]
[1693868428172,15.4,19.347,19.339,15.52]
[1693868428473,15.4,19.347,19.341,15.52]
[1693868428672,15.4,19.347,19.337,86.63]
[1693868428871,15.4,19.347,19.339,15.52]
[1693868429070,15.4,19.347,19.337,86.63]
[1693868429071,15.4,19.347,19.341,15.52]
[1693868429272,15.4,19.347,19.337,86.63]
[1693868429473,15.4,19.347,19.339,15.52]
[1693868429677,15.4,19.347,19.341,15.52]
[1693868429872,15.4,19.347,19.337,86.63]
[1693868430174,15.4,19.347,19.339,15.52]
[1693868430473,15.4,19.347,19.341,15.52]
[1693868430674,15.4,19.347,19.337,86.63]
[1693868430873,15.4,19.347,19.339,15.52]
[1693868431068,15.4,19.347,19.341,15.52]
[1693868431266,15.4,19.347,19.337,86.63]
[1693868431466,15.4,19.347,19.339,15.52]
[1693868431667,15.4,19.347,19.341,15.52]
[1693868431975,15.4,19.347,19.337,86.63]
[1693868432172,15.4,19.347,19.339,15.52]
[1693868432371,15.4,19.347,19.341,15.52]
[1693868432676,15.4,19.347,19.337,86.63]
[1693868432875,15.4,19.347,19.339,15.52]
[1693868433080,15.4,19.347,19.341,15.52]
[1693868433273,15.4,19.347,19.337,86.63]
[1693868433473,15.4,19.347,19.339,15.52]
[1693868433770,15.4,19.347,19.341,15.52]
[1693868433971,15.4,19.347,19.337,86.63]
[1693868434176,15.4,19.347,19.341,20.8392]
[1693868434978,86.63,19.348,19.341,20.8392]
[1693868435178,86.63,19.348,19.342,278.05203154]
[1693868436575,15.39,19.351,19.342,278.05203154]
[1693868440089,15.39,19.353,19.343,86.63]
[1693868440288,15.39,19.353,19.344,278.05203154]
[1693868441484,15.39,19.353,19.343,86.63]
[1693868441691,15.39,19.353,19.344,277.99647406]
[1693868443090,15.39,19.351,19.341,107.4692]
[1693868443291,15.39,19.351,19.342,278.0016782]
[1693868444695,15.39,19.351,19.342,278.0616782]
[1693868448197,15.39,19.351,19.342,278.0016782]
[1693868452701,86.63,19.352,19.342,278.0016782]
[1693868452903,20.90348597,19.358,19.342,278.0016782]
[1693868453203,15.39,19.353,19.347,77.92]
[1693868457300,15.39,19.353,19.348,20.4248]
[1693868460309,77.92,19.354,19.348,35.9348]
[1693868460604,77.92,19.354,19.349,15.51]
[1693868460910,77.92,19.356,19.35,77.92]
[1693868461204,20.90348597,19.358,19.348,20.4248]
[1693868461205,15.39,19.353,19.348,20.4248]
[1693868463397,15.39,19.353,19.347,77.92]
[1693868463600,77.92,19.351,19.344,77.92]
[1693868465704,15.39,19.347,19.341,77.92]
[1693868468009,15.4,19.342,19.336,0.45454546]
[1693868468213,15.4,19.342,19.335,98.1434]
[1693868469613,15.4,19.342,19.335,98.20638403]
[1693868475019,77.92,19.34,19.335,20.28638403]
[1693868476118,77.92,19.337,19.335,20.28638403]
[1693868476721,77.92,19.337,19.335,1e-08]
[1693868477721,77.92,19.337,19.33,77.92]
[1693868478718,15.4,19.334,19.33,77.92]
[1693868479315,93.32,19.334,19.328,21.9]
[1693868484331,93.32,19.334,19.331,0.12599326]
[1693868490537,15.4,19.332,19.331,0.12599326]
[1693868492637,15.4,19.332,19.328,21.9]
[1693868493136,77.92,19.331,19.328,21.9]
[1693868495135,77.92,19.333,19.328,37.41]
[1693868499548,77.92,19.333,19.331,0.12599326]
[1693868503143,77.98298404,19.335,19.331,0.12599326]
[1693868507439,77.92,19.335,19.33,15.51]
[1693868508641,77.98298404,19.335,19.33,15.51]
[1693868512539,0.06298404,19.335,19.331,77.92]
[1693868514445,0.06298404,19.335,19.331,78.04599313]
[1693868521248,77.98298404,19.335,19.331,0.12599313]
[1693868522546,77.92,19.335,19.33,26.92564552]
[1693868523749,77.98298397,19.335,19.33,26.92564552]
[1693868525353,77.98298397,19.335,19.328,99.82]
[1693868526452,77.98298397,19.335,19.328,115.34]
[1693868526652,77.98298397,19.335,19.328,99.82]
[1693868528054,77.98298397,19.335,19.328,115.34]
[1693868528256,77.98298397,19.335,19.328,99.82]
[1693868529149,77.98298397,19.335,19.328,115.34]
[1693868529349,77.98298397,19.335,19.331,0.12599313]
[1693868533158,77.92,19.334,19.331,0.12599313]
[1693868552773,77.92,19.334,19.328,37.42]
[1693868559681,77.92,19.334,19.331,0.12599313]
[1693868561382,0.06298397,19.335,19.331,0.12599313]
[1693868565082,77.92,19.339,19.332,77.92]
[1693868565275,77.92,19.342,19.335,77.92]
[1693868565482,77.92,19.344,19.339,15.52]
[1693868569979,77.92,19.344,19.33,15.97454546]
[1693868570288,77.92,19.341,19.335,77.92]
[1693868573090,77.92,19.342,19.335,77.92]
[1693868574790,77.92,19.342,19.335,77.98298392]
[1693868580704,77.92,19.337,19.335,0.06298392]
[1693868582200,77.92,19.339,19.335,0.06298392]
[1693868582801,77.92,19.339,19.334,15.52]
[1693868583101,77.92,19.34,19.334,77.92]
[1693868583801,1e-08,19.335,19.334,77.92]
[1693868591810,1e-08,19.335,19.331,78.04599273]
[1693868593214,77.92,19.337,19.331,77.92]
[1693868594205,0.06298377,19.335,19.331,77.92]
[1693868599015,0.06298377,19.335,19.331,77.98]
[1693868600114,0.06298377,19.335,19.331,78.10599273]
[1693868612726,77.92,19.338,19.331,78.10599273]
[1693868612727,77.92,19.338,19.331,77.92]
[1693868613627,77.92,19.337,19.331,77.92]
[1693868613821,0.06298377,19.335,19.331,77.92]
[1693868619632,0.06298377,19.335,19.331,78.04599273]
[1693868622732,0.22727272,19.35,19.331,0.12599273]
[1693868623033,77.92,19.346,19.339,77.92]
[1693868630941,77.92,19.346,19.331,0.45454546]
[1693868630942,15.4,19.342,19.336,77.92]
[1693868633640,77.92,19.343,19.337,15.52]
[1693868634240,77.92,19.343,19.337,15.58297721]
[1693868640646,15.4,19.342,19.337,0.06297721]
[1693868642645,15.4,19.342,19.336,77.92]
[1693868643143,77.92,19.345,19.339,77.92]
[1693868650350,77.92,19.347,19.34,77.92]
[1693868663054,77.92,19.347,19.337,0.06297721]
[1693868663359,77.92,19.345,19.339,77.92]
[1693868684264,77.92,19.349,19.342,77.92]
[1693868684473,77.92,19.349,19.342,119.89803706]
[1693868684665,77.92,19.353,19.345,77.92]
[1693868692980,77.92,19.35,19.344,20.1701]
[1693868693180,0.22727272,19.364,19.344,20.1701]
[1693868693181,15.4,19.348,19.344,20.1701]
[1693868693481,15.4,19.348,19.341,77.92]
[1693868703192,77.92,19.35,19.343,77.92]
[1693868732219,77.92,19.353,19.346,77.92]
[1693868732510,77.92,19.356,19.349,77.92]
[1693868733209,77.92,19.358,19.351,77.92]
[1693868740920,15.39,19.359,19.353,77.92]
[1693868741822,15.39,19.359,19.354,15.5]
[1693868743227,15.39,19.359,19.354,77.92]
[1693868749932,77.92,19.36,19.354,77.92]
[1693868755140,15.39,19.361,19.356,77.92]
[1693868755938,77.92,19.364,19.357,77.92]
[1693868756340,77.92,19.361,19.354,77.92]
[1693868757340,15.39,19.356,19.351,77.92]
[1693868766141,77.92,19.357,19.351,93.42]
[1693868766340,15.39,19.359,19.353,77.92]
[1693868770949,77.92,19.36,19.354,15.5]
[1693868771251,77.92,19.359,19.353,15.5]
[1693868773248,77.92,19.359,19.353,77.92]
[1693868782245,77.92,19.359,19.351,15.5]
[1693868782450,15.39,19.361,19.356,77.92]
[1693868785347,15.39,19.361,19.356,77.98]
[1693868793156,77.92,19.361,19.356,0.06]
[1693868801261,77.92,19.36,19.356,0.06]
[1693868822384,182.93123967,19.375,19.351,15.5]
[1693868822385,77.92,19.365,19.358,77.92]
[1693868822578,77.92,19.365,19.358,78.37454546]
[1693868822877,77.92,19.365,19.358,77.92]
[1693868823077,81.27056887,19.375,19.361,15.5]
[1693868823078,77.92,19.367,19.361,15.5]
[1693868823478,77.92,19.367,19.362,277.78550833]
[1693868824183,77.92,19.367,19.363,15.5]
[1693868824383,77.92,19.367,19.364,277.78550833]
[1693868824584,77.92,19.367,19.365,277.78550833]
[1693868824784,77.92,19.367,19.361,36.6757]
[1693868824977,77.92,19.367,19.363,15.5]
[1693868825282,77.92,19.367,19.361,21.1757]
[1693868825283,77.92,19.367,19.364,277.78570683]
[1693868825482,77.92,19.367,19.365,277.78570683]
[1693868825679,77.92,19.367,19.361,36.6757]
[1693868825885,77.92,19.367,19.363,15.5]
[1693868826081,77.92,19.367,19.364,277.78539104]
[1693868826382,77.92,19.367,19.361,36.6757]
[1693868826585,77.92,19.365,19.362,277.78527583]
[1693868831489,15.38,19.366,19.362,277.78527583]
[1693868833291,15.38,19.366,19.36,77.92]
[1693868833492,15.38,19.366,19.361,277.7869813]
[1693868837889,15.38,19.366,19.36,77.92]
[1693868838092,15.38,19.366,19.361,277.78691329]
[1693868838293,15.38,19.366,19.36,77.92]
[1693868838592,15.38,19.366,19.361,277.78689545]
[1693868838791,15.38,19.366,19.36,77.92]
[1693868838992,15.38,19.366,19.361,277.78694916]
[1693868839189,15.38,19.366,19.36,77.92]
[1693868839491,15.38,19.366,19.361,277.78699408]
[1693868839693,15.38,19.366,19.36,77.92]
[1693868839896,15.38,19.366,19.361,277.78704171]
[1693868840592,15.38,19.366,19.36,77.92]
[1693868840788,15.38,19.366,19.361,277.78712457]
[1693868841393,15.38,19.366,19.36,77.92]
[1693868841887,15.38,19.366,19.361,277.78757883]
[1693868842084,77.92,19.367,19.361,293.27757883]
[1693868842289,77.92,19.367,19.361,15.49]
[1693868843097,77.92,19.367,19.36,77.92]
[1693868843098,77.92,19.369,19.362,77.92]
[1693868863218,77.92,19.368,19.361,77.92]
[1693868867714,77.92,19.366,19.36,15.49]
[1693868867920,77.92,19.366,19.361,277.78013046]
[1693868873222,77.92,19.367,19.361,277.78013046]
[1693868883135,77.92,19.368,19.363,15.49]
[1693868883342,77.92,19.368,19.364,277.78013046]
[1693868885341,77.92,19.366,19.364,277.78013046]
[1693868885539,77.92,19.366,19.36,20.8928]
[1693868885842,77.92,19.366,19.361,277.76827726]
[1693868887538,77.92,19.37,19.361,277.76827726]
[1693868887735,77.92,19.37,19.363,126.25129858]
[1693868887938,77.92,19.37,19.365,15.49]
[1693868888140,77.92,19.37,19.366,277.76827726]
[1693868888342,77.92,19.37,19.367,277.76827726]
[1693868888545,77.92,19.37,19.368,277.76827726]
[1693868888744,77.92,19.37,19.369,277.76827726]
[1693868888945,77.92,19.37,19.365,15.49]
[1693868889147,77.92,19.37,19.366,277.76827726]
[1693868889450,77.92,19.37,19.367,277.76827726]
[1693868889741,77.92,19.37,19.368,277.76827726]
[1693868889946,77.92,19.37,19.369,277.76827726]
[1693868890550,77.92,19.37,19.365,15.49]
[1693868890749,77.92,19.37,19.366,277.76827726]
[1693868891048,77.92,19.37,19.367,277.76827726]
[1693868891250,77.92,19.37,19.368,277.76827726]
[1693868891449,77.92,19.37,19.369,277.76827726]
[1693868892949,77.92,19.37,19.365,15.49]
[1693868893149,77.92,19.371,19.366,277.76827726]
[1693868894250,77.92,19.368,19.366,277.76827726]
[1693868894555,77.92,19.368,19.367,277.76827726]
[1693868895255,77.92,19.368,19.362,277.76827726]
[1693868897652,77.92,19.368,19.363,277.69978272]
[1693868897855,77.92,19.368,19.364,277.69978272]
[1693868898051,77.92,19.368,19.365,277.69978272]
[1693868898251,77.92,19.368,19.366,277.69978272]
[1693868898453,77.92,19.368,19.367,277.69978272]
[1693868899054,77.92,19.368,19.362,277.69978272]
[1693868899251,77.92,19.368,19.363,277.69978272]
[1693868899558,77.92,19.368,19.364,277.69978272]
[1693868899858,77.92,19.368,19.365,277.69978272]
[1693868900057,77.92,19.368,19.366,277.69978272]
[1693868900358,77.92,19.368,19.367,277.69978272]
[1693868901656,77.92,19.368,19.362,277.69978272]
[1693868901849,77.92,19.368,19.363,277.69978272]
[1693868902046,77.92,19.368,19.364,277.69978272]
[1693868902247,77.92,19.368,19.365,277.69978272]
[1693868902456,77.92,19.368,19.366,277.69978272]
[1693868902657,77.92,19.368,19.367,277.69978272]
[1693868902847,77.92,19.368,19.362,277.69978272]
[1693868903047,77.92,19.368,19.363,15.49]
[1693868903251,77.92,19.368,19.364,277.69978272]
[1693868903553,77.92,19.368,19.365,277.69978272]
[1693868903754,77.92,19.368,19.366,277.69978272]
[1693868904054,77.92,19.368,19.367,277.69978272]
[1693868904254,77.92,19.368,19.361,124.93172595]
[1693868904255,77.92,19.368,19.363,15.49]
[1693868904459,77.92,19.368,19.364,277.69978272]
[1693868904650,77.92,19.368,19.365,277.69978272]
[1693868904853,77.92,19.368,19.366,277.69978272]
[1693868905061,77.92,19.368,19.367,277.69978272]
[1693868905265,77.92,19.368,19.363,15.49]
[1693868905562,77.92,19.368,19.364,277.69978272]
[1693868905755,77.92,19.368,19.365,277.69978272]
[1693868906057,77.92,19.368,19.366,277.69978272]
[1693868906259,77.92,19.368,19.367,277.69978272]
[1693868906459,77.92,19.368,19.363,15.49]
[1693868906662,77.92,19.368,19.364,277.69978272]
[1693868906960,77.92,19.368,19.365,277.69978272]
[1693868907154,77.92,19.368,19.366,277.69978272]
[1693868907358,77.92,19.368,19.367,277.69978272]
[1693868907560,77.92,19.368,19.363,15.49]
[1693868907761,77.92,19.368,19.364,277.69978272]
[1693868907960,77.92,19.368,19.365,277.69978272]
[1693868908160,77.92,19.368,19.366,277.69978272]
[1693868908360,77.92,19.368,19.367,277.69978272]
[1693868908656,77.92,19.368,19.363,15.49]
[1693868908855,77.92,19.368,19.365,15.49]
[1693868909060,77.92,19.371,19.366,277.69978272]
[1693868913060,77.92,19.372,19.366,277.69978272]
[1693868914360,77.92,19.372,19.367,15.49]
[1693868914663,77.92,19.372,19.369,15.49]
[1693868914959,0.12570277,19.376,19.371,93.41]
[1693868915163,0.12570277,19.376,19.373,15.49]
[1693868915367,0.12570277,19.376,19.371,77.92]
[1693868915565,0.12570277,19.376,19.373,15.49]
[1693868915766,0.12570277,19.376,19.371,77.92]
[1693868915968,0.12570277,19.376,19.373,15.49]
[1693868916166,0.12570277,19.376,19.371,77.92]
[1693868916367,0.12570277,19.376,19.373,15.49]
[1693868916666,0.12570277,19.376,19.371,77.92]
[1693868917459,78.04570277,19.376,19.369,77.92]
[1693868917659,78.04570277,19.376,19.37,277.67492628]
[1693868921968,78.04570277,19.376,19.371,15.48]
[1693868922272,78.04570277,19.376,19.369,77.92]
[1693868922473,78.04570277,19.376,19.371,15.48]
[1693868922670,78.04570277,19.376,19.369,77.92]
[1693868922879,78.04570277,19.376,19.371,15.48]
[1693868923169,78.04570277,19.376,19.369,77.92]
[1693868923376,78.04570277,19.376,19.371,15.48]
[1693868923566,78.04570277,19.376,19.369,77.92]
[1693868923767,78.04570277,19.376,19.371,15.48]
[1693868923973,78.04570277,19.376,19.369,77.92]
[1693868924172,78.04570277,19.376,19.371,15.48]
[1693868924374,78.04570277,19.376,19.369,77.92]
[1693868924576,78.04570277,19.376,19.371,15.48]
[1693868924876,78.04570277,19.376,19.369,77.92]
[1693868925074,78.04570277,19.376,19.371,15.48]
[1693868925275,78.04570277,19.376,19.369,77.92]
[1693868925470,78.04570277,19.376,19.371,15.48]
[1693868925777,78.04570277,19.376,19.369,77.92]
[1693868925975,78.04570277,19.376,19.371,15.48]
[1693868926277,78.04570277,19.376,19.369,77.92]
[1693868926472,78.04570277,19.376,19.371,15.48]
[1693868926777,78.04570277,19.376,19.369,77.92]
[1693868926974,78.04570277,19.376,19.371,15.48]
[1693868927271,78.04570277,19.376,19.369,77.92]
[1693868927570,78.04570277,19.376,19.371,15.48]
[1693868927772,78.04570277,19.376,19.369,77.92]
[1693868927977,78.04570277,19.376,19.371,15.48]
[1693868928173,78.04570277,19.376,19.369,77.92]
[1693868928374,78.04570277,19.376,19.371,15.48]
[1693868928572,78.04570277,19.376,19.369,77.92]
[1693868928773,78.04570277,19.376,19.371,15.48]
[1693868929075,78.04570277,19.376,19.369,77.92]
[1693868929276,78.04570277,19.376,19.371,15.48]
[1693868929477,78.04570277,19.376,19.369,77.92]
[1693868929776,78.04570277,19.376,19.371,15.48]
[1693868929972,78.04570277,19.376,19.369,77.92]
[1693868930176,78.04570277,19.376,19.371,15.48]
[1693868930377,78.04570277,19.376,19.369,77.92]
[1693868930579,78.04570277,19.376,19.371,15.48]
[1693868930778,78.04570277,19.376,19.369,77.92]
[1693868931078,78.04570277,19.376,19.371,15.48]
[1693868931279,78.04570277,19.376,19.369,77.92]
[1693868931477,78.04570277,19.376,19.371,15.48]
[1693868931677,78.04570277,19.376,19.369,77.92]
[1693868931879,78.04570277,19.376,19.371,15.48]
[1693868932074,78.04570277,19.376,19.369,77.92]
[1693868932279,78.04570277,19.376,19.367,20.7849]
[1693868932280,0.12570277,19.376,19.373,15.48]
[1693868932480,0.12570277,19.376,19.375,15.48]
[1693868932680,0.12570277,19.376,19.372,77.92]
[1693868932681,0.12570277,19.376,19.373,15.48]
[1693868933184,0.12570277,19.376,19.373,77.92]
[1693868936473,77.92,19.379,19.373,77.92]
[1693868936782,77.92,19.379,19.368,20.8366]
[1693868936783,77.92,19.382,19.375,93.4]
[1693868936978,77.92,19.382,19.375,77.92]
[1693868943085,77.92,19.383,19.378,15.48]
[1693868955194,77.92,19.385,19.378,77.92]
[1693868963095,77.92,19.383,19.376,77.92]
[1693868964498,77.92,19.383,19.376,77.98284995]
[1693868973608,15.36,19.379,19.376,0.06284995]
[1693868974508,77.92,19.38,19.376,0.06284995]
[1693868974807,77.92,19.382,19.376,0.06284995]
[1693868978918,77.92,19.382,19.376,277.60827676]
[1693868979118,77.92,19.382,19.376,0.06284995]
[1693868979320,77.92,19.382,19.376,277.60842668]
[1693868979519,77.92,19.382,19.376,0.06284995]
[1693868979821,77.92,19.382,19.377,15.48]
[1693868981520,77.92,19.382,19.376,0.06284995]
[1693868982123,77.92,19.382,19.376,277.60880765]
[1693868982417,77.92,19.382,19.376,0.06284995]
[1693868982615,77.92,19.382,19.376,277.60887237]
[1693868982811,77.92,19.382,19.377,277.54602242]
[1693868983020,77.92,19.382,19.376,0.06284995]
[1693868983221,109.48163107,19.384,19.377,77.92]
[1693868989923,77.92,19.384,19.377,77.92]
[1693868990129,77.92,19.384,19.378,277.54453573]
[1693868993323,15.37,19.384,19.378,355.46453573]
[1693868993524,15.37,19.384,19.378,77.92]
[1693868994623,15.37,19.384,19.379,277.53473797]